bitfinex-derivatives/quotes_SOLF0:USTF0_20250518
["timestamp","ask_amount","ask_price","bid_price","bid_amount"]
[1747539365275,5.985,167.03,166.99,5.9863]
[1747539366476,5.985,167.03,167.0,5.986]
[1747539367280,5.985,167.03,167.01,5.48827512]
[1747539368876,5.985,167.03,167.02,5.48827512]
[1747539370879,124.6,167.06,166.97,67.89840619]
[1747539371068,62.26,167.09,166.98,62.24]
[1747539371264,62.26,167.09,166.99,5.28300677]
[1747539371469,68.243,167.09,166.99,5.28300677]
[1747539371671,68.243,167.09,167.0,2.053]
[1747539371967,68.243,167.09,167.01,62.26]
[1747539372165,68.243,167.09,167.02,66.1292]
[1747539372569,68.243,167.09,167.03,5.48883463]
[1747539373079,62.26,167.09,167.03,5.48883463]
[1747539373274,5.9826,167.1,167.03,5.48883463]
[1747539373778,5.9826,167.1,167.07,5.9835]
[1747539376982,5.9826,167.1,167.06,5.9838]
[1747539377293,5.983,167.09,167.03,5.57840619]
[1747539377583,5.983,167.09,167.05,5.984]
[1747539377792,5.983,167.09,167.02,71.70760619]
[1747539378086,124.5,167.12,167.02,71.70760619]
[1747539378293,124.5,167.12,167.04,5.9844]
[1747539378785,124.5,167.12,167.02,9.46760619]
[1747539378987,124.5,167.12,167.02,15.45270619]
[1747539379181,124.5,167.12,167.03,5.48132342]
[1747539379580,124.5,167.12,167.03,11.46632342]
[1747539379799,5.9839,167.06,167.03,11.46632342]
[1747539380983,5.9839,167.06,167.03,5.985]
[1747539381790,5.9843,167.05,167.02,9.8745]
[1747539382183,62.2,167.08,167.02,3.8892]
[1747539383890,62.2,167.08,167.03,5.48141606]
[1747539384691,68.1834,167.08,167.05,5.9841]
[1747539384885,62.2,167.08,167.03,5.48141606]
[1747539385592,62.2,167.08,167.04,5.48141606]
[1747539386190,68.1833,167.08,167.06,5.9839]
[1747539386491,62.18,167.11,167.06,5.9839]
[1747539387591,5.983,167.09,167.06,5.9839]
[1747539388197,5.9826,167.1,167.07,5.9835]
[1747539390396,5.9829,167.09,167.06,5.9838]
[1747539391597,124.44,167.12,167.02,9.46760619]
[1747539391894,62.26,167.12,167.03,62.16]
[1747539392081,68.2421,167.12,167.08,5.9829]
[1747539392285,68.2421,167.12,167.05,62.16]
[1747539393595,68.2421,167.12,167.09,5.9826]
[1747539397096,62.26,167.12,167.08,5.9832]
[1747539397294,62.26,167.12,167.05,62.16]
[1747539397598,5.9831,167.09,167.06,5.9837]
[1747539397799,5.9831,167.09,167.03,67.73840619]
[1747539398005,62.26,167.12,167.03,67.73840619]
[1747539398402,5.9826,167.1,167.03,67.73840619]
[1747539398592,62.26,167.12,167.03,67.73840619]
[1747539398794,62.26,167.12,167.04,5.48007323]
[1747539399002,5.9832,167.08,167.05,5.9841]
[1747539399196,62.26,167.12,167.04,5.48007323]
[1747539400105,5.9834,167.08,167.05,5.9841]
[1747539400803,5.9836,167.07,167.04,11.46457323]
[1747539401206,62.14,167.1,167.04,5.48007323]
[1747539401801,62.14,167.1,167.05,5.48007323]
[1747539402605,5.9833,167.08,167.05,11.46427323]
[1747539403006,5.9833,167.08,167.05,5.9842]
[1747539405310,5.983,167.09,167.06,5.9839]
[1747539406210,5.983,167.09,167.07,5.9836]
[1747539406605,5.983,167.09,167.02,66.0492]
[1747539407011,5.983,167.09,167.06,5.9837]
[1747539407811,68.1226,167.1,167.07,5.9835]
[1747539411215,87.01995888,167.13,167.03,5.57840619]
[1747539411417,87.01995888,167.13,167.04,64.31591405]
[1747539411615,87.01995888,167.13,167.05,2.21591405]
[1747539411815,87.01995888,167.13,167.11,5.9819]
[1747539413217,87.01995888,167.13,167.12,5.9818]
[1747539414320,130.2408,167.15,167.12,5.9818]
[1747539415120,68.1408,167.15,167.12,5.9818]
[1747539416823,62.16,167.15,167.08,62.08]
[1747539417023,62.08,167.17,167.09,6.21202496]
[1747539417226,5.9807,167.16,167.12,5.9815]
[1747539417424,62.08,167.17,167.09,3.9964]
[1747539417623,62.08,167.17,167.1,2.2150163]
[1747539417822,62.08,167.17,167.11,2.2150163]
[1747539418023,62.08,167.17,167.09,3.9964]
[1747539418024,5.981,167.15,167.12,5.9815]
[1747539419727,5.9811,167.14,167.11,5.982]
[1747539420129,62.08,167.17,167.11,5.982]
[1747539420327,5.9808,167.15,167.12,5.9817]
[1747539421028,5.9808,167.15,167.11,5.982]
[1747539421828,5.9805,167.16,167.09,3.9964]
[1747539422022,5.9805,167.16,167.1,2.2132625]
[1747539422329,62.14,167.18,167.11,2.21308239]
[1747539422530,124.18,167.18,167.11,62.04]
[1747539422734,62.14,167.18,167.16,5.9803]
[1747539423330,68.1197,167.18,167.15,5.9804]
[1747539424534,5.9794,167.19,167.16,5.9803]
[1747539426031,124.08,167.21,167.12,1.9014]
[1747539426934,124.08,167.21,167.14,5.9809]
[1747539427133,62.04,167.21,167.14,5.9809]
[1747539427332,62.02,167.2,167.14,5.9809]
[1747539427639,62.04,167.21,167.12,1.9014]
[1747539427932,62.04,167.21,167.13,2.2099829]
[1747539427933,62.02,167.2,167.13,2.2099829]
[1747539428124,62.02,167.2,167.12,1.9014]
[1747539428325,62.02,167.2,167.13,2.2098245]
[1747539428626,5.9793,167.19,167.16,5.9801]
[1747539429535,5.9797,167.18,167.16,5.9801]
[1747539429737,5.9797,167.18,167.15,5.9806]
[1747539430137,5.9797,167.18,167.12,63.9214]
[1747539430341,5.9794,167.19,167.16,5.9803]
[1747539431038,67.999,167.2,167.17,5.9799]
[1747539431942,62.04,167.21,167.13,2.20741546]
[1747539432138,62.04,167.21,167.12,63.9214]
[1747539432333,62.0,167.22,167.13,2.20680213]
[1747539432629,67.9783,167.22,167.19,5.979]
[1747539433032,148.98060926,167.24,167.21,5.9785]
[1747539433239,148.98060926,167.24,167.16,3.9872]
[1747539433540,124.02,167.24,167.16,3.9872]
[1747539433738,5.9782,167.22,167.19,5.9791]
[1747539434138,124.02,167.24,167.16,3.9872]
[1747539434635,124.02,167.24,167.15,62.02]
[1747539434841,124.02,167.24,167.12,125.9414]
[1747539436039,5.98,167.18,167.14,5.9809]
[1747539436235,62.02,167.19,167.11,9.43560619]
[1747539436537,124.0,167.18,167.11,5.57840619]
[1747539437234,5.9815,167.13,167.11,5.57840619]
[1747539437732,61.98,167.14,167.11,11.56050619]
[1747539437936,61.98,167.14,167.11,5.57840619]
[1747539438239,61.98,167.17,167.08,124.0]
[1747539438431,61.98,167.17,167.09,3.12005972]
[1747539438945,5.981,167.15,167.11,5.9819]
[1747539439242,61.98,167.17,167.11,5.9819]
[1747539440040,5.981,167.15,167.11,5.9819]
[1747539442743,5.981,167.15,167.12,5.9817]
[1747539447041,61.98,167.17,167.09,1.9231]
[1747539447240,5.9812,167.14,167.11,5.982]
[1747539448149,61.98,167.17,167.08,62.02]
[1747539448340,61.98,167.17,167.06,67.51840619]
[1747539448846,61.98,167.17,167.06,5.57840619]
[1747539449140,5.982,167.12,167.08,5.9829]
[1747539450640,62.02,167.14,167.06,5.9836]
[1747539450845,61.94,167.13,167.05,62.02]
[1747539451037,61.94,167.13,167.06,2.20996286]
[1747539451236,61.94,167.13,167.05,62.02]
[1747539451437,61.94,167.13,167.06,2.2103076]
[1747539451637,61.94,167.13,167.05,62.02]
[1747539451935,61.94,167.13,167.06,2.2102865]
[1747539452240,61.94,167.13,167.07,2.2102865]
[1747539452441,61.94,167.13,167.08,2.2102865]
[1747539452641,68.0011,167.14,167.11,5.9821]
[1747539452945,62.02,167.14,167.06,5.46593894]
[1747539453145,62.02,167.14,167.11,5.9818]
[1747539453346,61.94,167.16,167.11,5.9818]
[1747539453547,5.28300677,167.19,167.06,5.46593894]
[1747539453755,123.86,167.18,167.11,5.9818]
[1747539454446,5.981,167.15,167.11,5.9818]
[1747539454644,123.86,167.18,167.11,5.9818]
[1747539454838,123.86,167.18,167.1,5.9824]
[1747539455041,5.9813,167.14,167.1,5.9824]
[1747539455341,123.86,167.18,167.09,5.9828]
[1747539455646,5.982,167.12,167.07,5.57840619]
[1747539455843,5.982,167.12,167.08,8.1953146]
[1747539456042,5.982,167.12,167.07,5.57840619]
[1747539456238,123.84,167.14,167.08,2.2123146]
[1747539456444,123.84,167.14,167.07,11.56170619]
[1747539456645,5.9824,167.11,167.09,5.47083429]
[1747539457037,123.84,167.14,167.09,5.47083429]
[1747539457250,5.9825,167.1,167.09,5.47083429]
[1747539457446,123.84,167.14,167.09,5.47083429]
[1747539458049,61.92,167.14,167.06,5.57840619]
[1747539458348,123.84,167.14,167.07,2.21257174]
[1747539458537,5.9814,167.13,167.09,5.9825]
[1747539459251,123.84,167.14,167.08,5.9831]
[1747539459452,123.84,167.14,167.06,5.57840619]
[1747539459756,5.9824,167.11,167.07,2.21250168]
[1747539459946,5.9824,167.11,167.07,5.9832]
[1747539460243,5.9824,167.11,167.05,67.59840619]
[1747539460443,5.9824,167.11,167.06,2.21248219]
[1747539460649,5.9824,167.11,167.07,2.21248219]
[1747539460852,5.9824,167.11,167.05,67.59840619]
[1747539461043,5.9824,167.11,167.06,2.21245909]
[1747539461238,5.9824,167.11,167.07,7.68487928]
[1747539461444,5.9824,167.11,167.07,5.47242019]
[1747539461642,5.9824,167.11,167.08,5.9832]
[1747539462142,5.9826,167.1,167.07,11.45582019]
[1747539462651,5.9829,167.09,167.07,5.47242019]
[1747539462846,123.84,167.14,167.07,5.47242019]
[1747539463345,123.84,167.14,167.08,5.47242019]
[1747539464552,5.9826,167.1,167.08,5.47242019]
[1747539464946,123.84,167.14,167.08,5.47242019]
[1747539465145,123.84,167.14,167.05,5.57840619]
[1747539465545,5.28300677,167.13,167.05,5.57840619]
[1747539465853,5.9839,167.06,167.05,5.57840619]
[1747539466451,5.9837,167.07,167.05,5.57840619]
[1747539466652,61.94,167.09,167.05,5.57840619]
[1747539466953,61.88,167.11,167.06,5.9837]
[1747539467155,61.88,167.11,167.03,61.94]
[1747539467348,61.88,167.11,167.04,2.21088234]
[1747539467659,61.88,167.11,167.05,2.21088234]
[1747539467847,61.88,167.11,167.03,123.82]
[1747539468046,61.88,167.11,167.04,2.21086777]
[1747539468047,67.8623,167.11,167.04,2.21086777]
[1747539468244,61.88,167.11,167.05,2.21086777]
[1747539468460,61.88,167.11,167.03,123.82]
[1747539468764,5.9825,167.1,167.06,5.9837]
[1747539469256,61.88,167.11,167.05,5.9842]
[1747539469855,5.9831,167.09,167.05,5.9842]
[1747539473062,5.9831,167.09,167.06,5.9838]
[1747539474262,61.88,167.11,167.03,61.94]
[1747539474463,61.88,167.11,167.04,2.21057687]
[1747539474667,61.88,167.11,167.05,2.21057687]
[1747539474964,67.8624,167.11,167.07,5.9833]
[1747539475355,67.8624,167.11,167.08,5.9832]
[1747539476063,5.9825,167.1,167.07,5.9835]
[1747539476555,61.88,167.11,167.06,5.46379918]
[1747539477156,61.88,167.11,167.09,5.9826]
[1747539477764,61.94,167.12,167.1,5.9824]
[1747539477965,5.9815,167.13,167.1,5.9824]
[1747539478959,67.8212,167.14,167.1,5.9824]
[1747539479267,5.9812,167.14,167.11,5.982]
[1747539480565,67.9208,167.15,167.12,5.9817]
[1747539482066,67.8001,167.17,167.14,5.9811]
[1747539483472,61.94,167.18,167.16,5.9803]
[1747539483673,61.94,167.18,167.11,61.82]
[1747539483970,61.82,167.2,167.12,7.98315671]
[1747539484174,67.7993,167.2,167.16,5.9801]
[1747539485071,5.9793,167.19,167.16,5.9801]
[1747539487373,5.979,167.2,167.16,5.9801]
[1747539487572,5.979,167.2,167.12,5.7691]
[1747539487573,61.82,167.21,167.12,5.7691]
[1747539487773,123.62,167.21,167.13,64.00590304]
[1747539487977,129.5988,167.21,167.17,5.9798]
[1747539489074,67.7988,167.21,167.17,5.9798]
[1747539490265,5.9789,167.2,167.17,5.9798]
[1747539490462,5.9789,167.2,167.16,5.9802]
[1747539493076,5.9793,167.19,167.16,5.9802]
[1747539493476,61.82,167.21,167.16,5.9802]
[1747539494275,5.9792,167.2,167.16,5.9802]
[1747539494473,61.82,167.21,167.12,5.7691]
[1747539494974,5.9798,167.18,167.14,5.9807]
[1747539496278,5.9798,167.18,167.15,5.9807]
[1747539497876,61.76,167.2,167.16,5.9802]
[1747539498376,5.9793,167.19,167.16,5.9802]
[1747539498675,61.76,167.2,167.16,5.9802]
[1747539498876,5.9791,167.2,167.16,5.9802]
[1747539499768,5.9794,167.19,167.16,5.9802]
[1747539499970,61.82,167.21,167.12,5.7691]
[1747539499971,61.74,167.18,167.12,5.7691]
[1747539500875,61.8,167.17,167.1,5.57840619]
[1747539501381,5.981,167.15,167.11,5.9821]
[1747539501581,61.8,167.17,167.11,5.9821]
[1747539502781,61.8,167.17,167.09,2.20174156]
[1747539502974,61.8,167.17,167.08,61.8]
[1747539503174,5.9808,167.15,167.08,61.8]
[1747539503375,5.9808,167.15,167.12,5.9816]
[1747539504183,5.9804,167.16,167.13,5.9814]
[1747539504478,5.9804,167.16,167.09,5.45508779]
[1747539504686,5.9807,167.15,167.12,5.9817]
[1747539505283,5.9811,167.14,167.11,5.9821]
[1747539505685,5.9817,167.13,167.1,5.45508779]
[1747539506287,5.9818,167.12,167.09,5.9825]
[1747539506879,5.9825,167.1,167.07,3.8495]
[1747539507379,61.8,167.13,167.06,5.57840619]
[1747539507886,5.9831,167.09,167.06,5.57840619]
[1747539508085,5.9831,167.09,167.05,67.784]
[1747539508289,5.9831,167.09,167.03,3.818]
[1747539508490,5.9831,167.09,167.04,2.20358749]
[1747539508792,5.9831,167.09,167.03,3.818]
[1747539508990,5.9831,167.09,167.04,2.20369423]
[1747539509184,5.9831,167.09,167.03,3.818]
[1747539509386,5.9826,167.1,167.07,5.9836]
[1747539509585,61.8,167.13,167.07,5.9836]
[1747539509983,61.7,167.12,167.08,5.9832]
[1747539510186,61.7,167.12,167.05,2.2035634]
[1747539510488,5.9824,167.11,167.07,5.9835]
[1747539510981,61.7,167.12,167.05,2.20308013]
[1747539511189,61.7,167.12,167.05,5.9842]
[1747539512091,5.9834,167.08,167.05,5.9842]
[1747539514396,5.9834,167.08,167.04,5.9845]
[1747539514892,67.6829,167.09,167.05,5.9841]
[1747539515091,67.6829,167.09,167.03,1.925]
[1747539515292,67.6829,167.09,167.04,2.20386063]
[1747539515593,67.6829,167.09,167.03,1.925]
[1747539515792,67.6829,167.09,167.04,2.20392407]
[1747539515986,67.6829,167.09,167.05,5.46009132]
[1747539516693,67.6829,167.09,167.06,5.9839]
[1747539516902,67.6829,167.09,167.05,5.46009132]
[1747539517090,61.7,167.09,167.05,5.46009132]
[1747539517594,61.7,167.09,167.06,5.9836]
[1747539518383,61.7,167.09,167.07,5.9835]
[1747539520995,61.7,167.12,167.03,1.925]
[1747539521298,61.7,167.12,167.04,2.20419168]
[1747539521495,67.6819,167.12,167.08,5.9829]
[1747539522098,5.9819,167.12,167.08,5.9829]
[1747539522494,5.9829,167.09,167.06,8.18796726]
[1747539522696,123.38,167.13,167.04,123.38]
[1747539522898,123.38,167.13,167.05,2.20443553]
[1747539523098,123.38,167.13,167.04,123.38]
[1747539523399,5.9827,167.1,167.04,123.38]
[1747539523803,123.38,167.13,167.04,123.38]
[1747539523996,123.38,167.13,167.05,5.9842]
[1747539524599,5.9831,167.09,167.06,5.9839]
[1747539528813,5.9826,167.1,167.07,5.9836]
[1747539530203,123.38,167.13,167.05,5.9841]
[1747539530406,123.38,167.13,167.03,1.925]
[1747539531302,5.9834,167.08,167.05,5.9842]
[1747539531505,123.38,167.13,167.03,1.925]
[1747539532408,5.9835,167.08,167.04,5.9843]
[1747539533705,5.9836,167.07,167.04,5.9843]
[1747539534005,61.64,167.09,167.03,7.9099]
[1747539534307,123.34,167.09,167.03,7.9099]
[1747539534603,5.9839,167.06,167.03,7.9099]
[1747539534901,123.34,167.09,167.03,1.925]
[1747539536209,5.984,167.06,167.03,7.9098]
[1747539539113,123.34,167.09,167.04,5.9843]
[1747539539515,5.9835,167.08,167.04,5.9843]
[1747539539712,123.34,167.09,167.04,5.9843]
[1747539540112,5.9839,167.06,167.03,7.9099]
[1747539541212,5.9837,167.07,167.04,5.9846]
[1747539541414,123.34,167.09,167.03,1.925]
[1747539541714,5.9835,167.08,167.05,5.9843]
[1747539541905,123.34,167.09,167.03,1.925]
[1747539542310,123.34,167.09,167.04,5.46740805]
[1747539543115,5.9834,167.08,167.05,5.9841]
[1747539543415,5.9834,167.08,167.03,1.925]
[1747539543717,5.9834,167.08,167.04,5.9845]
[1747539543918,61.7,167.09,167.03,1.925]
[1747539544104,61.7,167.09,167.06,5.9836]
[1747539545416,61.7,167.09,167.07,11.45820982]
[1747539545618,5.9828,167.1,167.07,11.45820982]
[1747539547115,5.9828,167.1,167.07,5.9835]
[1747539547317,67.5823,167.11,167.08,5.9832]
[1747539547507,67.5823,167.11,167.03,7.50340619]
[1747539547708,61.6,167.11,167.03,7.50340619]
[1747539547909,5.9826,167.1,167.06,5.9836]
[1747539548110,5.9826,167.1,167.07,2.2118782]
[1747539548311,5.9826,167.1,167.03,7.50340619]
[1747539548511,5.9826,167.1,167.04,2.21247841]
[1747539548821,5.9826,167.1,167.05,2.21247841]
[1747539549022,5.9826,167.1,167.06,2.21247841]
[1747539549219,5.9826,167.1,167.07,2.21247841]
[1747539549520,5.9829,167.09,167.04,11.05994818]
[1747539549721,61.6,167.11,167.05,2.21672333]
[1747539549916,61.6,167.11,167.06,2.21672333]
[1747539550113,61.6,167.11,167.06,5.9836]
[1747539550421,61.6,167.11,167.07,2.21821461]
[1747539550623,5.9826,167.1,167.07,5.48154199]
[1747539550822,5.9826,167.1,167.07,11.46514199]
[1747539552131,5.9826,167.1,167.08,2.21849039]
[1747539552324,5.9826,167.1,167.07,11.46514199]
[1747539552529,5.9826,167.1,167.08,7.7002437]
[1747539552725,61.58,167.12,167.09,5.9827]
[1747539552931,61.58,167.12,167.08,5.48154199]
[1747539553637,61.58,167.12,167.09,5.48154199]
[1747539554531,67.5618,167.12,167.09,11.46414199]
[1747539554735,61.58,167.12,167.1,2.21828421]
[1747539555032,61.56,167.14,167.09,5.48154199]
[1747539555228,5.9815,167.13,167.1,2.21827703]
[1747539555428,5.9815,167.13,167.11,5.48154199]
[1747539555629,123.12,167.15,167.11,5.48154199]
[1747539556629,5.9818,167.12,167.11,5.48154199]
[1747539558534,578.56,167.18,167.11,7.70059079]
[1747539558737,640.1,167.18,167.12,2.2190488]
[1747539558933,640.1,167.18,167.11,5.48154199]
[1747539559137,640.1,167.18,167.12,2.21875118]
[1747539559335,640.1,167.18,167.13,2.21875118]
[1747539559530,640.1,167.18,167.11,5.48154199]
[1747539559735,5.9804,167.16,167.13,5.9814]
[1747539560227,5.9804,167.16,167.09,69.05420619]
[1747539560228,5.9804,167.16,167.14,5.48154199]
[1747539560437,5.9807,167.15,167.14,5.48154199]
[1747539561942,5.9807,167.15,167.11,5.9819]
[1747539562143,5.9807,167.15,167.12,2.21575497]
[1747539562345,5.9807,167.15,167.11,5.9819]
[1747539562544,5.9807,167.15,167.12,2.21506111]
[1747539562847,640.1,167.18,167.09,69.05420619]
[1747539563044,640.1,167.18,167.1,2.2152399]
[1747539563236,5.9812,167.14,167.1,5.9822]
[1747539563435,5.9812,167.14,167.09,69.05420619]
[1747539563643,5.9812,167.14,167.11,5.47633397]
[1747539564745,5.9808,167.15,167.11,11.45843397]
[1747539565246,5.9808,167.15,167.11,5.9821]
[1747539565546,5.9812,167.14,167.11,5.9821]
[1747539566146,5.9812,167.14,167.12,5.47474562]
[1747539567651,5.9808,167.15,167.12,5.47474562]
[1747539568344,5.9808,167.15,167.11,5.9821]
[1747539569141,5.9808,167.15,167.12,5.9817]
[1747539569446,5.9805,167.16,167.12,5.9817]
[1747539569749,5.9808,167.15,167.12,5.9817]
[1747539572549,5.9804,167.16,167.12,5.9817]
[1747539572749,3.3745078,167.17,167.1,3.3745078]
[1747539573348,67.5597,167.18,167.15,5.9807]
[1747539575551,5.9794,167.19,167.16,5.9802]
[1747539576349,5.9791,167.2,167.13,61.44]
[1747539576949,5.9791,167.2,167.17,5.98]
[1747539577754,61.44,167.21,167.17,5.98]
[1747539577755,67.4187,167.21,167.17,5.98]
[1747539579056,5.9783,167.22,167.13,61.44]
[1747539579551,5.9783,167.22,167.19,5.979]
[1747539580254,5.9783,167.22,167.18,5.9795]
[1747539581650,5.9786,167.21,167.18,5.9795]
[1747539581851,122.88,167.24,167.13,67.01840619]
[1747539582345,5.9793,167.2,167.16,5.9801]
[1747539584259,122.88,167.24,167.15,5.9806]
[1747539584260,128.1506478,167.24,167.15,5.9806]
[1747539584556,128.1506478,167.24,167.13,61.44]
[1747539584757,5.9792,167.2,167.16,5.9803]
[1747539585258,128.1506478,167.24,167.16,5.9803]
[1747539586258,5.9791,167.2,167.16,5.9803]
[1747539589959,5.9794,167.19,167.15,5.9806]
[1747539590150,128.1506478,167.24,167.13,61.44]
[1747539590348,66.7106478,167.24,167.15,5.9806]
[1747539590554,61.4,167.23,167.15,5.9806]
[1747539590754,61.4,167.23,167.13,61.44]
[1747539590958,5.9799,167.18,167.14,5.9808]
[1747539592262,5.9799,167.18,167.15,5.9806]
[1747539592765,5.9801,167.17,167.14,5.9809]
[1747539593055,61.38,167.19,167.12,2.0262]
[1747539593458,61.38,167.19,167.12,8.0079]
[1747539593660,61.38,167.19,167.12,2.0262]
[1747539593862,61.38,167.19,167.1,5.57840619]
[1747539594664,5.9816,167.13,167.1,5.57840619]
[1747539594865,5.9816,167.13,167.11,5.46411245]
[1747539595558,5.9818,167.12,167.11,5.46411245]
[1747539597066,5.9818,167.12,167.07,63.4699]
[1747539597466,5.9813,167.14,167.07,63.4699]
[1747539598165,67.3608,167.15,167.11,5.9819]
[1747539600968,67.4204,167.16,167.12,5.9815]
[1747539601368,67.4204,167.16,167.07,69.04830619]
[1747539601570,61.44,167.16,167.14,5.981]
[1747539601866,61.36,167.18,167.14,5.981]
[1747539602469,61.36,167.18,167.13,5.9811]
[1747539602657,61.36,167.18,167.11,2.0584]
[1747539602860,61.36,167.18,167.08,5.46915291]
[1747539603067,61.36,167.18,167.09,5.57840619]
[1747539603865,5.9804,167.16,167.12,5.9816]
[1747539604271,61.36,167.18,167.09,5.57840619]
[1747539604476,5.9813,167.14,167.1,5.9824]
[1747539604672,61.36,167.18,167.1,5.9824]
[1747539604871,61.36,167.18,167.09,5.57840619]
[1747539605074,5.9812,167.14,167.11,5.9821]
[1747539606474,5.9812,167.14,167.12,5.47072863]
[1747539606771,5.9808,167.15,167.12,5.47072863]
[1747539607073,5.9814,167.14,167.12,5.47072863]
[1747539607987,5.9808,167.15,167.11,5.9819]
[1747539610281,5.9811,167.14,167.11,5.9819]
[1747539611184,5.9811,167.14,167.12,5.47091007]
[1747539612682,5.9811,167.14,167.11,5.9819]
[1747539613476,5.9808,167.15,167.11,5.9819]
[1747539614586,5.9804,167.16,167.09,5.57840619]
[1747539614881,61.32,167.18,167.1,3.37442567]
[1747539615183,5.9807,167.16,167.12,5.9816]
[1747539615383,61.32,167.18,167.12,5.9816]
[1747539615682,61.32,167.18,167.1,3.37442567]
[1747539615980,5.9806,167.16,167.13,5.9814]
[1747539618483,5.9801,167.17,167.13,5.9814]
[1747539618889,5.9801,167.17,167.14,5.981]
[1747539619188,5.27168845,167.22,167.11,122.66]
[1747539619381,61.34,167.21,167.16,5.9801]
[1747539619673,61.32,167.21,167.16,5.9801]
[1747539620786,61.34,167.22,167.16,5.9801]
[1747539621085,122.64,167.22,167.16,5.9801]
[1747539621691,122.64,167.22,167.13,2.0087]
[1747539621982,5.9807,167.15,167.12,1.9006]
[1747539622190,122.64,167.18,167.14,5.47096574]
[1747539622387,61.34,167.17,167.14,5.47096574]
[1747539622595,5.9807,167.15,167.14,5.47096574]
[1747539622996,61.34,167.17,167.1,5.57840619]
[1747539623498,5.9809,167.15,167.11,11.45480185]
[1747539624301,5.9811,167.14,167.11,11.45480185]
[1747539624798,5.9811,167.14,167.12,5.47290185]
[1747539625694,5.9814,167.13,167.12,5.47290185]
[1747539627601,5.982,167.12,167.08,13.43670619]
[1747539628202,5.982,167.12,167.09,5.9827]
[1747539628805,5.982,167.12,167.1,5.47665348]
[1747539630095,5.982,167.12,167.11,5.47665348]
[1747539631406,5.982,167.12,167.09,5.9827]
[1747539632896,5.982,167.12,167.08,1.8753]
[1747539632897,5.9816,167.13,167.1,5.9825]
[1747539637003,61.34,167.17,167.08,1.8753]
[1747539637403,5.9817,167.13,167.09,5.9827]
[1747539637605,61.34,167.17,167.09,5.9827]
[1747539637903,5.9818,167.13,167.09,5.9827]
[1747539638104,61.34,167.17,167.09,5.9827]
[1747539639612,5.9819,167.12,167.09,5.9827]
[1747539643913,5.9815,167.13,167.09,5.9827]
[1747539645610,5.9815,167.13,167.1,5.9825]
[1747539646800,5.9815,167.13,167.09,5.9827]
[1747539651212,64.61520928,167.15,167.09,5.9827]
[1747539652714,5.9816,167.13,167.1,5.9824]
[1747539656715,517.0,167.22,167.09,3.37520928]
[1747539656916,3.37520928,167.18,167.09,3.37520928]
[1747539657215,5.9802,167.17,167.13,5.9813]
[1747539657415,3.37520928,167.18,167.09,3.37520928]
[1747539658215,5.9806,167.16,167.09,3.37520928]
[1747539658416,3.37520928,167.16,167.08,1.8753]
[1747539658615,64.55520928,167.16,167.08,1.8753]
[1747539658816,5.9814,167.14,167.08,1.8753]
[1747539659021,64.55520928,167.16,167.08,1.8753]
[1747539659218,3.37520928,167.14,167.08,1.8753]
[1747539659513,5.9817,167.13,167.1,5.9825]
[1747539660518,5.9817,167.13,167.09,5.9827]
[1747539660717,5.9817,167.13,167.08,1.8753]
[1747539660921,5.9817,167.13,167.11,5.48050836]
[1747539661420,5.9812,167.14,167.11,5.48050836]
[1747539661916,61.18,167.16,167.11,5.48050836]